[Event "13th Arad Open 2020"]
[Site "Arad"]
[Date "2020.09.30"]
[Round "9.8"]
[White "Ungureanu, Sandu"]
[Black "Ursan, Petru-Sebastian"]
[Result "0-1"]
[ECO "A00"]
[WhiteElo "2059"]
[BlackElo "2248"]
[Annotator "ChessBase"]
[PlyCount "199"]
[EventDate "2020.09.25"]
[EventType "swiss"]
[EventCountry "ROU"]
[SourceTitle "playchess.com"]
[Source "ChessBase"]
[SourceQuality "1"]
[TimeControl "5400+30"]

1. g3 {[%emt 0:00:00]} c5 {[%emt 0:01:32]} 2. d4 {[%emt 0:00:00]} cxd4 {[%emt 0:00:11]} 3. Qxd4 {[%emt 0:00:02]} Nc6 {[%emt 0:00:10]} 4. Qd1 {[%emt 0:00:07]} d5 {[%emt 0:03:58]} 5. Bg2 {[%emt 0:00:13]} Nf6 {[%emt 0:00:24]} 6. Nf3 {[%emt 0:00:54]} g6 {[%emt 0:06:13]} 7. c4 {[%emt 0:03:02]} Bg7 {[%emt 0:02:07]} 8. cxd5 {[%emt 0:02:39]} Nxd5 {[%emt 0:01:57]} 9. O-O {[%emt 0:00:09]} O-O {[%emt 0:00:12]} 10. e4 {[%emt 0:02:52]} Ndb4 {[%emt 0:01:17]} 11. Nc3 {[%emt 0:00:15]} Bg4 {[%emt 0:04:44]} 12. Be3 {[%emt 0:05:15]} Ne5 {[%emt 0:09:44]} 13. Qxd8 {[%emt 0:00:51]} Rfxd8 {[%emt 0:00:08]} 14. Nxe5 {[%emt 0:00:30]} Bxe5 {[%emt 0:00:13]} 15. Bc5 {[%emt 0:04:10]} Nc6 {[%emt 0:19:54]} 16. h3 {[%emt 0:03:11]} Be6 {[%emt 0:00:35]} 17. Nd5 {[%emt 0:04:11]} Rd7 {[%emt 0:02:21]} 18. Ba3 {[%emt 0:02:24]} f5 {[%emt 0:01:02]} 19. Rfd1 {[%emt 0:02:22]} fxe4 {[%emt 0:00:50]} 20. Bxe4 {[%emt 0:00:22]} Bxh3 {[%emt 0:00:46]} 21. Nxe7+ {[%emt 0:00:33]} Nxe7 {[%emt 0:10:21]} 22. Rxd7 {[%emt 0:00:46]} Bxd7 {[%emt 0:00:07]} 23. Bxe7 {[%emt 0:00:21]} Re8 {[%emt 0:00:30]} 24. Bd5+ {[%emt 0:00:27]} Kg7 {[%emt 0:01:24]} 25. Ba3 {[%emt 0:00:09]} b6 {[%emt 0:01:10]} 26. Re1 {[%emt 0:00:54]} Kf6 {[%emt 0:00:34]} 27. b3 {[%emt 0:01:18]} Bf5 {[%emt 0:04:33]} 28. Bc4 {[%emt 0:07:26]} Rd8 {[%emt 0:03:47]} 29. Be7+ {[%emt 0:02:40]} Kxe7 {[%emt 0:00:05]} 30. Rxe5+ {[%emt 0:00:04]} Kf6 {[%emt 0:00:10]} 31. f4 {[%emt 0:03:34]} Rd1+ {[%emt 0:01:49]} 32. Kf2 {[%emt 0:00:21]} Bg4 {[%emt 0:01:07]} 33. Rd5 {[%emt 0:02:23]} Ra1 {[%emt 0:00:37]} 34. Rd6+ {[%emt 0:00:27]} Ke7 {[%emt 0:01:29]} 35. Rd2 {[%emt 0:00:35]} Bf5 {[%emt 0:00:18]} 36. a4 {[%emt 0:00:57]} Rb1 {[%emt 0:00:30]} 37. Ke3 {[%emt 0:01:43]} h5 {[%emt 0:00:45]} 38. Kd4 {[%emt 0:02:34]} Rg1 {[%emt 0:01:13]} 39. Re2+ {[%emt 0:00:12]} Kd6 {[%emt 0:00:35]} 40. Re3 {[%emt 0:00:04]} h4 {[%emt 0:02:12]} 41. gxh4 {[%emt 0:00:22]} Rg4 {[%emt 0:00:05]} 42. Rf3 {[%emt 0:00:23]} Rxh4 {[%emt 0:00:11]} 43. Bd3 {[%emt 0:03:02]} Bxd3 {[%emt 0:05:49]} 44. Kxd3 {[%emt 0:00:42]} Ke6 {[%emt 0:03:50]} 45. Rg3 {[%emt 0:00:30]} Kf5 {[%emt 0:00:38]} 46. Rg5+ {[%emt 0:00:06]} Kf6 {[%emt 0:00:20]} 47. Ke4 {[%emt 0:00:04]} Rh3 {[%emt 0:03:39]} 48. Rb5 {[%emt 0:00:15]} Ke6 {[%emt 0:01:00]} 49. a5 {[%emt 0:00:17]} Rh5 {[%emt 0:00:18]} 50. Rb4 {[%emt 0:10:00]} Rxa5 {[%emt 0:00:06]} 51. Rd4 {[%emt 0:00:35]} Ra1 {[%emt 0:01:50]} 52. b4 {[%emt 0:01:03]} Ra4 {[%emt 0:00:23]} 53. b5 {[%emt 0:02:42]} Ra5 {[%emt 0:02:53]} 54. Rb4 {[%emt 0:00:15]} Kd6 {[%emt 0:00:22]} 55. Kd4 {[%emt 0:00:39]} Ra1 {[%emt 0:00:17]} 56. Rc4 {[%emt 0:00:13]} Ke6 {[%emt 0:01:18]} 57. Rc7 {[%emt 0:00:53]} Ra4+ {[%emt 0:01:24]} 58. Ke3 {[%emt 0:00:30]} Ra5 {[%emt 0:00:19]} 59. Ke4 {[%emt 0:00:38]} Ra4+ {[%emt 0:00:28]} 60. Ke3 {[%emt 0:00:06]} Kf6 {[%emt 0:00:32]} 61. Rd7 {[%emt 0:00:57]} Ra5 {[%emt 0:00:29]} 62. Rc7 {[%emt 0:00:12]} Rxb5 {[%emt 0:00:18]} 63. Rxa7 {[%emt 0:00:05]} Rb1 {[%emt 0:00:29]} 64. Rd7 {[%emt 0:00:46]} Re1+ {[%emt 0:00:49]} 65. Kf3 {[%emt 0:00:16]} Re6 {[%emt 0:00:45]} 66. Rb7 {[%emt 0:00:48]} Rc6 {[%emt 0:01:02]} 67. Kg4 {[%emt 0:01:08]} Rd6 {[%emt 0:00:47]} 68. Rb8 {[%emt 0:01:05]} Rc6 {[%emt 0:00:36]} 69. Rb7 {[%emt 0:00:05]} Ke6 {[%emt 0:00:23]} 70. Kg5 {[%emt 0:00:04]} Kd5 {[%emt 0:00:17]} 71. Rg7 {[%emt 0:00:23]} Ke4 {[%emt 0:01:12]} 72. Re7+ {[%emt 0:00:07]} Kd5 {[%emt 0:00:38]} 73. Rg7 {[%emt 0:00:25]} Ke4 {[%emt 0:00:23]} 74. Re7+ {[%emt 0:00:04]} Kf3 {[%emt 0:00:15]} 75. Rb7 {[%emt 0:01:07]} Re6 {[%emt 0:00:31]} 76. Rb8 {[%emt 0:03:34]} Ke4 {[%emt 0:00:15]} 77. Rd8 {[%emt 0:00:34]} Rc6 {[%emt 0:00:59]} 78. Re8+ {[%emt 0:00:13]} Kd4 {[%emt 0:00:22]} 79. Rg8 {[%emt 0:00:10]} Ke3 {[%emt 0:00:49]} 80. Re8+ {[%emt 0:00:07]} Kf3 {[%emt 0:00:14]} 81. Rb8 {[%emt 0:00:06]} Rd6 {[%emt 0:00:28]} 82. Rb7 {[%emt 0:00:11]} Ke4 {[%emt 0:00:32]} 83. Re7+ {[%emt 0:00:08]} Kd5 {[%emt 0:00:10]} 84. Rg7 {[%emt 0:00:04]} b5 {[%emt 0:00:32]} 85. Rxg6 {[%emt 0:00:06]} b4 {[%emt 0:00:42]} 86. Rg8 {[%emt 0:00:24]} Rb6 {[%emt 0:00:37]} 87. Rd8+ {[%emt 0:00:12]} Ke4 {[%emt 0:00:31]} 88. Re8+ {[%emt 0:00:07]} Kd5 {[%emt 0:00:52]} 89. Rd8+ {[%emt 0:00:49]} Ke6 {[%emt 0:00:15]} 90. f5+ {[%emt 0:00:06]} Kf7 {[%emt 0:00:15]} 91. Rd7+ {[%emt 0:00:09]} Ke8 {[%emt 0:00:08]} 92. Rd1 {[%emt 0:00:12]} Ke7 {[%emt 0:00:15]} 93. Re1+ {[%emt 0:00:50]} Kf7 {[%emt 0:00:06]} 94. Kf4 {[%emt 0:00:14]} Rb8 {[%emt 0:00:20]} 95. Rb1 {[%emt 0:00:10]} Kf6 {[%emt 0:00:05]} 96. Ke4 {[%emt 0:00:05]} Rb5 {[%emt 0:00:10]} 97. Kd4 {[%emt 0:00:04]} Kxf5 {[%emt 0:00:12]} 98. Kc4 {[%emt 0:00:04]} Rb8 {[%emt 0:00:04]} 99. Rxb4 {[%emt 0:00:04]} Rxb4+ {[%emt 0:00:04]} 100. Kxb4 {[%emt 0:00:06]} 0-1

[Event "13th Arad Open 2020"]
[Site "Arad"]
[Date "2020.09.30"]
[Round "9.9"]
[White "Daianu, Cristian-Clement"]
[Black "Suciu, Dinu-Simi"]
[Result "1/2-1/2"]
[ECO "B12"]
[WhiteElo "2224"]
[BlackElo "2050"]
[Annotator "ChessBase"]
[PlyCount "28"]
[EventDate "2020.09.25"]
[EventType "swiss"]
[EventCountry "ROU"]
[SourceTitle "playchess.com"]
[Source "ChessBase"]
[SourceQuality "1"]
[TimeControl "5400+30"]

1. e4 {[%emt 0:01:50]} c6 {[%emt 0:00:00]} 2. d4 {[%emt 0:00:10]} d5 {[%emt 0:00:00]} 3. f3 {[%emt 0:00:03]} e6 {[%emt 0:00:16]} 4. Be3 {[%emt 0:02:00]} dxe4 {[%emt 0:06:17]} 5. fxe4 {[%emt 0:00:20]} Qh4+ {[%emt 0:00:13]} 6. g3 {[%emt 0:00:13]} Qxe4 {[%emt 0:00:45]} 7. Qe2 {[%emt 0:00:13]} Qd5 {[%emt 0:02:11]} 8. Bg2 {[%emt 0:03:51]} Qa5+ {[%emt 0:05:47]} 9. Nd2 {[%emt 0:09:32]} Nf6 {[%emt 0:01:36]} 10. Ngf3 {[%emt 0:01:20]} Be7 {[%emt 0:01:44]} 11. O-O {[%emt 0:02:12]} O-O {[%emt 0:00:10]} 12. Nc4 {[%emt 0:08:32]} Qa6 {[%emt 0:08:09]} 13. Bg5 {[%emt 0:25:58]} Nbd7 {[%emt 0:02:30]} 14. Rad1 {[%emt 0:03:14]} Nb6 {[%emt 0:04:18]} 1/2-1/2

[Event "13th Arad Open 2020"]
[Site "Arad"]
[Date "2020.09.30"]
[Round "9.10"]
[White "Dobrin, Ionut-Alexandru"]
[Black "Pisu, Robert-Daniel"]
[Result "0-1"]
[ECO "D80"]
[WhiteElo "2040"]
[BlackElo "2223"]
[Annotator "ChessBase"]
[PlyCount "118"]
[EventDate "2020.09.25"]
[EventType "swiss"]
[EventCountry "ROU"]
[SourceTitle "playchess.com"]
[Source "ChessBase"]
[SourceQuality "1"]
[TimeControl "5400+30"]

1. d4 {[%emt 0:00:00]} Nf6 {[%emt 0:01:19]} 2. c4 {[%emt 0:00:00]} g6 {[%emt 0:00:17]} 3. Nc3 {[%emt 0:00:00]} d5 {[%emt 0:00:05]} 4. Bg5 {[%emt 0:00:02]} Bg7 {[%emt 0:00:51]} 5. Bxf6 {[%emt 0:00:08]} Bxf6 {[%emt 0:00:05]} 6. cxd5 {[%emt 0:00:07]} c6 {[%emt 0:00:04]} 7. Rc1 {[%emt 0:02:32]} O-O {[%emt 0:01:08]} 8. dxc6 {[%emt 0:00:57]} Qxd4 {[%emt 0:02:53]} 9. Qxd4 {[%emt 0:00:36]} Bxd4 {[%emt 0:00:04]} 10. cxb7 {[%emt 0:00:10]} Bxb7 {[%emt 0:00:04]} 11. e3 {[%emt 0:00:35]} Bf6 {[%emt 0:00:29]} 12. Nf3 {[%emt 0:01:25]} Nd7 {[%emt 0:01:17]} 13. Be2 {[%emt 0:00:26]} Rab8 {[%emt 0:01:24]} 14. Nd1 {[%emt 0:13:37]} Rfc8 {[%emt 0:16:28]} 15. Rxc8+ {[%emt 0:05:24]} Rxc8 {[%emt 0:00:05]} 16. Bd3 {[%emt 0:18:15]} Bd5 {[%emt 0:08:24]} 17. a3 {[%emt 0:04:10]} Nc5 {[%emt 0:02:36]} 18. Bc2 {[%emt 0:02:16]} Nb3 {[%emt 0:09:05]} 19. Bd3 {[%emt 0:05:17]} Bxf3 {[%emt 0:10:27]} 20. gxf3 {[%emt 0:00:15]} Rc1 {[%emt 0:00:07]} 21. e4 {[%emt 0:07:41]} Bxb2 {[%emt 0:02:11]} 22. O-O {[%emt 0:01:03]} Bxa3 {[%emt 0:01:17]} 23. Ne3 {[%emt 0:00:22]} Nd4 {[%emt 0:04:43]} 24. Kg2 {[%emt 0:02:05]} Rxf1 {[%emt 0:02:22]} 25. Bxf1 {[%emt 0:00:01]} a5 {[%emt 0:03:24]} 26. Nc4 {[%emt 0:00:16]} Bb4 {[%emt 0:00:06]} 27. Nb6 {[%emt 0:00:16]} g5 {[%emt 0:03:43]} 28. Ba6 {[%emt 0:03:31]} Bc5 {[%emt 0:03:32]} 29. Na4 {[%emt 0:01:05]} Ne6 {[%emt 0:00:07]} 30. Bb5 {[%emt 0:02:03]} Bd4 {[%emt 0:00:09]} 31. Kg3 {[%emt 0:02:59]} Kg7 {[%emt 0:00:59]} 32. Be8 {[%emt 0:03:49]} Kg6 {[%emt 0:01:24]} 33. Bb5 {[%emt 0:00:19]} h5 {[%emt 0:01:00]} 34. Kg2 {[%emt 0:01:28]} Nf4+ {[%emt 0:00:26]} 35. Kf1 {[%emt 0:00:21]} Nh3 {[%emt 0:03:04]} 36. Be8 {[%emt 0:00:34]} Kf6 {[%emt 0:04:25]} 37. Bd7 {[%emt 0:02:00]} Nxf2 {[%emt 0:01:00]} 38. Nc3 {[%emt 0:00:25]} Bxc3 {[%emt 0:00:43]} 39. Kxf2 {[%emt 0:00:01]} Be5 {[%emt 0:02:12]} 40. h3 {[%emt 0:00:20]} Bf4 {[%emt 0:00:34]} 41. Ke2 {[%emt 0:00:37]} h4 {[%emt 0:01:08]} 42. Be8 {[%emt 0:00:07]} Ke6 {[%emt 0:00:43]} 43. Kd3 {[%emt 0:00:10]} f6 {[%emt 0:00:32]} 44. Ba4 {[%emt 0:09:05]} Kd6 {[%emt 0:01:03]} 45. Kc4 {[%emt 0:00:08]} Ke5 {[%emt 0:00:12]} 46. Kd3 {[%emt 0:00:05]} Bc1 {[%emt 0:00:39]} 47. Bd7 {[%emt 0:04:17]} Kf4 {[%emt 0:00:13]} 48. Bg4 {[%emt 0:01:27]} a4 {[%emt 0:00:36]} 49. Kc4 {[%emt 0:00:09]} a3 {[%emt 0:00:14]} 50. Kb3 {[%emt 0:00:01]} Bb2 {[%emt 0:00:33]} 51. Ka2 {[%emt 0:00:07]} Ke5 {[%emt 0:00:17]} 52. Bh5 {[%emt 0:02:46]} e6 {[%emt 0:00:29]} 53. Kb3 {[%emt 0:03:30]} f5 {[%emt 0:00:16]} 54. exf5 {[%emt 0:00:10]} exf5 {[%emt 0:00:03]} 55. Be8 {[%emt 0:00:37]} g4 {[%emt 0:01:18]} 56. fxg4 {[%emt 0:02:17]} fxg4 {[%emt 0:00:06]} 57. hxg4 {[%emt 0:00:19]} Kf4 {[%emt 0:00:26]} 58. Bd7 {[%emt 0:03:09]} h3 {[%emt 0:00:06]} 59. g5 {[%emt 0:00:39]} h2 {[%emt 0:00:04]} 0-1